bitfinex-derivatives/quotes_SOLF0:USTF0_20250331
["timestamp","ask_amount","ask_price","bid_price","bid_amount"]
[1743388243833,7.942,125.93,125.87,62.0]
[1743388244031,7.942,125.93,125.88,29.8]
[1743388244231,42.06080671,125.95,125.88,29.8]
[1743388244232,7.9422,125.92,125.88,29.8]
[1743388244432,42.06080671,125.95,125.88,29.8]
[1743388244940,7.9428,125.91,125.9,0.05464901]
[1743388245231,0.05288629,125.93,125.9,0.05464901]
[1743388245635,7.9425,125.92,125.9,0.05464901]
[1743388245833,0.05288629,125.93,125.9,0.05464901]
[1743388246236,12.313693,125.93,125.9,0.05464901]
[1743388246427,2.0566,125.92,125.9,0.05464901]
[1743388246828,2.0027,125.91,125.9,0.05464901]
[1743388247029,9.9455,125.91,125.9,0.05464901]
[1743388247226,14.26350671,125.91,125.85,91.8]
[1743388248236,0.05628887,125.89,125.87,0.05346569]
[1743388249236,8.00038887,125.89,125.87,0.05346569]
[1743388250136,7.9447,125.88,125.87,0.05346569]
[1743388251037,8.00058887,125.89,125.87,0.05346569]
[1743388251833,29.85628887,125.89,125.85,62.0]
[1743388252226,29.85628887,125.89,125.84,358.0]
[1743388252431,7.9469,125.85,125.82,29.8]
[1743388252833,12.26080671,125.86,125.78,643.76]
[1743388253136,12.26080671,125.84,125.77,29.8]
[1743388253636,7.9488,125.82,125.77,37.7513]
[1743388254339,8.00265274,125.81,125.78,0.05785883]
[1743388254531,0.05335274,125.81,125.78,0.05785883]
[1743388254933,7.9501,125.8,125.78,0.05785883]
[1743388255327,7.9501,125.8,125.78,62.05785883]
[1743388256340,7.9503,125.79,125.78,62.05785883]
[1743388256737,7.9503,125.79,125.78,0.05785883]
[1743388258038,44.17680671,125.8,125.74,358.0]
[1743388258238,44.17680671,125.8,125.72,285.86]
[1743388258534,44.17680671,125.8,125.73,29.82]
[1743388258734,7.952,125.77,125.73,29.82]
[1743388259135,0.05793751,125.76,125.74,0.05319131]
[1743388259740,0.05793751,125.76,125.75,62.0]
[1743388259938,8.01013751,125.76,125.75,62.0]
[1743388260642,7.9529,125.75,125.74,0.05319131]
[1743388261042,7.9551,125.72,125.7,29.82]
[1743388261240,7.9551,125.72,125.69,358.0]
[1743388262139,8.00770073,125.72,125.69,358.05357626]
[1743388262437,0.05260073,125.72,125.69,358.05357626]
[1743388263142,0.05260073,125.72,125.69,366.01017626]
[1743388263543,0.05260073,125.72,125.7,62.0]
[1743388264339,0.05260073,125.72,125.71,29.82]
[1743388264540,0.05260073,125.72,125.71,37.7754]
[1743388265144,0.05260073,125.72,125.71,50.03620671]
[1743388268045,0.05260073,125.72,125.71,112.03620671]
[1743388268548,2.096,125.8,125.76,7.9522]
[1743388268841,7.9488,125.82,125.76,42.08080671]
[1743388269045,16.33300671,125.86,125.78,12.26080671]
[1743388269245,16.33300671,125.86,125.79,37.77]
[1743388269437,12.26080671,125.84,125.79,29.82]
[1743388269644,12.26080671,125.84,125.77,37.7715]
[1743388269844,0.05373164,125.83,125.8,0.05778296]
[1743388270046,7.9493,125.81,125.8,0.05778296]
[1743388271146,7.9487,125.82,125.8,0.05778296]
[1743388271446,0.05373164,125.83,125.8,0.05778296]
[1743388271744,7.9484,125.82,125.8,0.05778296]
[1743388271948,0.05373164,125.83,125.8,0.05778296]
[1743388272540,8.00193164,125.83,125.8,0.05778296]
[1743388274147,0.05373164,125.83,125.8,29.87778296]
[1743388274743,0.05373164,125.83,125.81,62.0]
[1743388275147,8.00163164,125.83,125.81,62.0]
[1743388275347,0.05373164,125.83,125.81,62.0]
[1743388275849,8.00193164,125.83,125.81,62.0]
[1743388277150,0.05373164,125.83,125.81,62.0]
[1743388278249,0.05373164,125.83,125.8,0.05778296]
[1743388278445,7.9484,125.82,125.8,0.05778296]
[1743388278849,0.05373164,125.83,125.8,0.05778296]
[1743388280854,7.9491,125.81,125.8,0.05778296]
[1743388281047,7.9491,125.81,125.8,62.05778296]
[1743388281647,0.05373164,125.83,125.8,62.05778296]
[1743388281846,0.05373164,125.83,125.8,91.87778296]
[1743388283853,8.00163164,125.83,125.8,91.87778296]
[1743388284650,0.05373164,125.83,125.8,91.87778296]
[1743388285952,8.00153164,125.83,125.8,91.87778296]
[1743388286754,7.9485,125.82,125.8,91.87778296]
[1743388287349,8.00183164,125.83,125.8,91.87778296]
[1743388287754,0.05373164,125.83,125.8,91.87778296]
[1743388288354,8.00173164,125.83,125.8,91.87778296]
[1743388288763,0.05373164,125.83,125.8,91.87778296]
[1743388288955,7.9484,125.82,125.8,91.87778296]
[1743388289856,0.05373164,125.83,125.8,91.87778296]
[1743388290149,0.05373164,125.83,125.8,99.82698296]
[1743388291456,0.05373164,125.83,125.82,12.26080671]
[1743388291655,44.12540671,125.91,125.82,12.26080671]
[1743388291849,7.9435,125.9,125.86,7.9453]
[1743388292055,2.1149,125.92,125.87,29.8]
[1743388292757,7.9439,125.9,125.88,0.05999657]
[1743388295554,7.944,125.89,125.88,0.05999657]
[1743388296354,7.9436,125.9,125.88,0.05999657]
[1743388297962,8.00361612,125.91,125.88,0.05999657]
[1743388299064,0.06051612,125.91,125.88,8.00459657]
[1743388300565,0.06051612,125.91,125.89,7.944]
[1743388300762,0.06051612,125.91,125.9,29.8]
[1743388300970,7.9405,125.95,125.9,42.06080671]
[1743388301161,7.9405,125.95,125.91,62.0]
[1743388301360,3.9759,125.99,125.91,62.0]
[1743388301568,7.9393,125.97,125.93,7.9414]
[1743388301867,3.9759,125.99,125.94,29.8]
[1743388302262,7.9393,125.97,125.95,0.05937404]
[1743388303967,0.05413071,125.98,125.95,0.05937404]
[1743388304574,7.9396,125.96,125.95,0.05937404]
[1743388304771,0.05413071,125.98,125.95,0.05937404]
[1743388305276,7.9393,125.97,125.95,0.05937404]
[1743388305572,0.05413071,125.98,125.95,0.05937404]
[1743388305976,7.99273071,125.98,125.95,0.05937404]
[1743388306675,7.939,125.97,125.95,0.05937404]
[1743388307067,0.05413071,125.98,125.95,0.05937404]
[1743388307772,0.05413071,125.98,125.95,62.05937404]
[1743388308777,0.05413071,125.98,125.95,0.05937404]
[1743388309178,7.9393,125.97,125.95,0.05937404]
[1743388311279,0.05413071,125.98,125.95,0.05937404]
[1743388311484,0.05413071,125.98,125.96,7.9393]
[1743388311887,0.05413071,125.98,125.97,91.78]
[1743388313085,0.05413071,125.98,125.97,99.719]
[1743388313285,0.05413071,125.98,125.97,91.78]
[1743388314385,0.05413071,125.98,125.97,99.719]
[1743388320890,4.0506,126.05,125.97,91.78]
[1743388321088,4.0506,126.05,125.98,12.26080671]
[1743388321793,7.9356,126.03,126.0,7.9367]
[1743388321994,7.99484116,126.03,126.01,29.76]
[1743388322889,0.05924116,126.03,126.01,29.76]
[1743388323994,7.99444116,126.03,126.01,29.76]
[1743388324991,0.05924116,126.03,126.01,29.76]
[1743388325794,0.05924116,126.03,126.01,37.59098589]
[1743388325997,0.05924116,126.03,126.01,29.76]
[1743388327298,7.83098589,126.02,126.0,0.05408648]
[1743388328197,15.76698589,126.02,126.0,0.05408648]
[1743388328393,7.936,126.02,126.0,0.05408648]
[1743388328891,7.9365,126.01,126.0,0.05408648]
[1743388329896,7.9384,125.98,125.97,62.0]
[1743388330101,7.83098589,125.98,125.94,29.74]
[1743388330295,7.9419,125.93,125.9,365.83098589]
[1743388330597,7.83098589,125.94,125.9,387.74]
[1743388330798,7.83098589,125.95,125.9,37.57098589]
[1743388331101,0.05251347,125.93,125.91,7.88539324]
[1743388331494,0.05251347,125.93,125.92,7.83098589]
[1743388331690,0.05251347,125.93,125.91,7.99700735]
[1743388331890,0.05251347,125.93,125.92,29.74]
[1743388332700,0.05251347,125.93,125.91,0.05440735]
[1743388334807,7.99441347,125.93,125.91,0.05440735]
[1743388336202,0.05251347,125.93,125.91,0.05440735]
[1743388336701,0.05251347,125.93,125.92,62.0]
[1743388338609,0.05251347,125.93,125.92,69.9421]
[1743388339110,0.05251347,125.93,125.92,62.0]
[1743388340508,7.99401347,125.93,125.92,62.0]
[1743388341403,7.9421,125.92,125.91,0.05440735]
[1743388341608,0.05251347,125.93,125.87,29.76]
[1743388341808,42.01379158,125.94,125.87,29.76]
[1743388341809,7.9445,125.89,125.87,29.76]
[1743388342513,7.9445,125.89,125.88,62.0]
[1743388342705,8.00553488,125.89,125.88,62.0]
[1743388342900,0.06103488,125.89,125.87,0.06000158]
[1743388344109,0.06103488,125.89,125.87,8.00500158]
[1743388345110,0.06103488,125.89,125.87,0.06000158]
[1743388345509,0.06103488,125.89,125.87,8.00530158]
[1743388345810,0.06103488,125.89,125.88,62.0]
[1743388346204,0.06103488,125.89,125.88,69.9447]
[1743388346401,0.06103488,125.89,125.88,62.0]
[1743388346705,0.06103488,125.89,125.88,82.19849158]
[1743388347411,0.06103488,125.89,125.88,74.25379158]
[1743388348011,0.06103488,125.89,125.88,62.0]
[1743388349104,0.06103488,125.89,125.88,69.9447]
[1743388349505,1.9787,125.95,125.88,74.25379158]
[1743388349704,1.9787,125.95,125.89,29.76]
[1743388350707,0.05779089,125.93,125.91,0.05843604]
[1743388351213,7.9421,125.92,125.91,0.05843604]
[1743388351417,0.05779089,125.93,125.91,0.05843604]
[1743388352521,7.99969089,125.93,125.91,0.05843604]
[1743388352919,7.99969089,125.93,125.91,62.05843604]
[1743388353122,7.9421,125.92,125.91,0.05843604]
[1743388354324,0.05779089,125.93,125.91,0.05843604]
[1743388356215,0.05779089,125.93,125.92,62.0]
[1743388358326,7.99929089,125.93,125.92,62.0]
[1743388358624,0.05779089,125.93,125.91,0.05843604]
[1743388358819,0.05779089,125.93,125.85,31.7522]
[1743388359024,0.05779089,125.93,125.86,7.9458]
[1743388359025,7.9437,125.9,125.86,7.9458]
[1743388359225,12.25379158,125.9,125.83,387.76]
[1743388359422,7.9466,125.85,125.83,358.0]
[1743388359626,12.25379158,125.9,125.81,29.76]
[1743388359822,0.05098478,125.87,125.84,0.05474503]
[1743388361424,0.05098478,125.87,125.85,62.0]
[1743388363529,0.05098478,125.87,125.85,69.9461]
[1743388364128,0.05098478,125.87,125.85,62.0]
[1743388365430,7.99658478,125.87,125.85,62.0]
[1743388367232,0.05098478,125.87,125.85,62.0]
[1743388368529,7.99648478,125.87,125.85,62.0]
[1743388369534,0.05098478,125.87,125.85,62.0]
[1743388370035,0.05098478,125.87,125.86,7.9459]
[1743388370238,0.05098478,125.87,125.86,37.7059]
[1743388370736,0.05098478,125.87,125.86,49.95969158]
[1743388371032,12.25379158,125.96,125.86,407.95379158]
[1743388371336,2.0483,125.97,125.9,12.25379158]
[1743388371538,2.0483,125.97,125.91,37.7024]
[1743388371729,2.0483,125.97,125.91,29.76]
[1743388371935,45.96006356,125.99,125.94,7.9408]
[1743388372135,0.05969922,125.95,125.94,7.9408]
[1743388372335,7.9396,125.97,125.93,0.05641198]
[1743388372536,0.05846991,125.96,125.93,7.99741198]
[1743388373138,0.05846991,125.96,125.94,62.0]
[1743388373539,7.99816991,125.96,125.94,62.0]
[1743388373739,0.05846991,125.96,125.94,62.0]
[1743388374135,7.9409,125.94,125.93,0.05641198]
[1743388374335,42.01379158,125.94,125.82,792.63534702]
[1743388374533,42.01379158,125.94,125.85,12.25379158]
[1743388374734,7.9425,125.92,125.87,20.19869158]
[1743388374936,29.76,125.94,125.87,42.01379158]
[1743388375131,2.1185,125.95,125.87,42.01379158]
[1743388375337,7.9411,125.94,125.89,7.9436]
[1743388375534,0.05416146,125.92,125.9,0.05293632]
[1743388375934,0.05416146,125.92,125.9,7.99613632]
[1743388376241,0.05416146,125.92,125.9,0.05293632]
[1743388377138,7.99646146,125.92,125.91,62.0]
[1743388378041,0.05416146,125.92,125.91,62.0]
[1743388380841,0.05416146,125.92,125.91,69.9428]
[1743388381045,0.05416146,125.92,125.91,111.93659158]
[1743388381245,2.1497,126.0,125.91,103.99379158]
[1743388381545,2.1497,126.0,125.93,12.25379158]
[1743388381741,2.1497,126.0,125.94,29.74]
[1743388382142,2.0326,126.01,125.94,29.74]
[1743388382349,0.06100061,125.98,125.96,0.05380776]
[1743388382549,0.06100061,125.98,125.97,37.679]
[1743388382945,0.06100061,125.98,125.97,29.74]
[1743388384345,0.06100061,125.98,125.97,37.679]
[1743388384748,12.25379158,126.05,125.97,103.99379158]
[1743388384946,7.9355,126.03,125.98,7.9381]
[1743388385443,12.25379158,126.05,125.97,41.99379158]
[1743388385644,12.25379158,126.05,125.97,49.93259158]
[1743388385849,0.05896027,126.02,126.0,0.0583]
[1743388386246,7.99526027,126.02,126.0,0.0583]
[1743388386648,0.05896027,126.02,126.0,0.0583]
[1743388386848,7.9365,126.01,126.0,0.0583]
[1743388387445,7.9384,125.98,125.93,12.25379158]
[1743388387649,7.9384,125.98,125.94,29.74]
[1743388388153,7.9384,125.98,125.95,62.0]
[1743388388653,7.98902179,125.98,125.95,62.05457616]
[1743388388851,7.9391,125.97,125.95,62.05457616]
[1743388389052,0.05062179,125.98,125.95,62.05457616]
[1743388389456,2.18172179,125.98,125.95,62.05457616]
[1743388390156,2.18172179,125.98,125.95,0.05457616]
[1743388391857,7.9396,125.96,125.95,0.05457616]
[1743388393158,7.9396,125.96,125.95,62.05457616]
[1743388393456,7.9396,125.96,125.95,0.05457616]
[1743388398064,41.99379158,125.97,125.87,12.25379158]
[1743388398257,12.25379158,125.94,125.83,4.1515]
[1743388398562,1.9734,125.93,125.87,29.74]
[1743388399159,0.06120023,125.91,125.89,0.05307584]
[1743388399366,12.25379158,125.9,125.82,358.0]
[1743388399564,12.25379158,125.88,125.82,29.74]
[1743388399965,7.9476,125.84,125.82,29.74]
[1743388400166,12.25379158,125.88,125.82,91.74]
[1743388400565,0.05487612,125.86,125.84,0.05773424]
[1743388400761,0.05487612,125.86,125.85,29.74]
[1743388400965,0.05487612,125.86,125.85,37.6866]
[1743388401159,1.9734,125.93,125.85,29.74]
[1743388401361,2.1089,125.95,125.88,12.25379158]
[1743388401565,41.99379158,125.98,125.89,31.6966]
[1743388401766,12.25379158,125.96,125.89,29.74]
[1743388402362,0.05293102,125.94,125.91,0.05559775]
[1743388404261,0.05293102,125.94,125.92,62.0]
[1743388404864,0.05293102,125.94,125.91,0.05559775]
[1743388405166,7.9421,125.92,125.91,0.05559775]
[1743388405470,0.05293102,125.94,125.91,0.05559775]
[1743388406465,0.05293102,125.94,125.92,29.74]
[1743388406765,7.9372,126.0,125.96,7.9392]
[1743388406969,7.9372,126.0,125.96,37.6792]
[1743388407164,7.9372,126.0,125.96,29.74]
[1743388407770,0.05889242,125.99,125.97,0.05901592]
[1743388407970,0.05889242,125.99,125.98,62.0]
[1743388415073,7.9339,126.05,126.0,7.9367]
[1743388415277,309.33385984,126.08,126.01,29.72]
[1743388415477,309.33385984,126.08,126.02,29.72]
[1743388415672,19.61025984,126.06,125.98,29.74]
[1743388416179,0.05498886,126.03,126.01,0.05561158]
[1743388416870,7.9358,126.02,126.01,0.05561158]
[1743388417675,0.05498886,126.03,125.97,358.0]
[1743388417878,2.03838886,126.03,125.97,358.0]
[1743388418478,2.0372,126.02,125.97,358.0]
[1743388418779,2.0372,126.02,125.98,0.05682942]
[1743388419275,21.64745984,126.02,125.98,0.05682942]
[1743388419480,7.9377,125.99,125.98,0.05682942]
[1743388420477,7.9395,125.97,125.94,29.72]
[1743388421579,7.99648764,125.97,125.94,29.78000424]
[1743388421776,0.05698764,125.97,125.94,29.78000424]
[1743388422274,0.05698764,125.97,125.95,62.0]
[1743388422482,1.9834,126.03,125.95,62.0]
[1743388422483,1.9834,126.03,125.95,81.61025984]
[1743388422975,1.9834,126.03,125.97,7.9386]
[1743388423171,1.9834,126.03,125.98,29.76]
[1743388423370,7.9368,126.01,125.98,29.76]
[1743388423570,0.05668459,126.02,125.99,0.05523214]
[1743388423784,12.30240704,126.02,125.99,0.05523214]
[1743388424183,42.08240704,126.02,125.99,0.05523214]
[1743388424381,7.9371,126.0,125.99,0.05523214]
[1743388426284,7.9394,125.97,125.95,91.74]
[1743388426577,12.24572245,126.0,125.91,365.9425]
[1743388426784,12.24572245,125.98,125.91,358.0]
[1743388426984,12.24572245,125.98,125.91,387.74]
[1743388427183,7.9402,125.96,125.91,395.6827]
[1743388427485,7.99284075,125.96,125.93,0.05393229]
[1743388428375,7.9403,125.95,125.93,0.05393229]
[1743388428580,0.05264075,125.96,125.93,0.05393229]
[1743388428781,0.05264075,125.96,125.94,29.72]
[1743388428984,0.05264075,125.96,125.94,31.761]
[1743388429288,0.05264075,125.96,125.95,7.9402]
[1743388429683,0.05264075,125.96,125.95,69.9402]
[1743388431280,0.05264075,125.96,125.95,62.0]
[1743388431679,7.99224075,125.96,125.95,62.0]
[1743388431879,0.05264075,125.96,125.95,62.0]
[1743388434684,0.05264075,125.96,125.93,29.77393229]
[1743388435186,7.99264075,125.96,125.93,29.77393229]
[1743388435891,0.05264075,125.96,125.93,0.05393229]
[1743388436894,7.9406,125.95,125.93,0.05393229]
[1743388437790,7.9406,125.95,125.93,62.05393229]
[1743388438897,0.05264075,125.96,125.93,0.05393229]
[1743388439300,42.0183632,125.96,125.87,359.9637]
[1743388439492,12.24572245,125.94,125.88,29.72]
[1743388439896,12.24572245,125.92,125.87,29.72]
[1743388440596,0.05596456,125.91,125.88,0.05777319]
[1743388440795,7.9438,125.9,125.88,0.05777319]
[1743388441796,7.944,125.89,125.88,0.05777319]
[1743388441997,0.05596456,125.91,125.88,0.05777319]
[1743388442304,7.944,125.9,125.88,0.05777319]
[1743388443100,7.944,125.89,125.88,0.05777319]
[1743388444504,7.946,125.86,125.83,31.8825]
[1743388445701,0.05857902,125.86,125.83,31.93823631]
[1743388447100,8.00447902,125.86,125.84,62.0]
[1743388447906,4.0458,125.92,125.84,62.0]
[1743388448208,30.04,125.95,125.85,19.62345219]
[1743388448408,7.9427,125.92,125.87,7.9449]
[1743388448609,30.04,125.95,125.86,32.1881]
[1743388448812,34.2448,125.97,125.87,19.62345219]
[1743388449004,4.1848,125.97,125.89,19.62345219]
[1743388449199,0.05174535,125.93,125.91,0.0511197]
[1743388449509,7.9392,125.97,125.93,7.9413]
[1743388449699,43.7889924,125.99,125.93,30.06]
[1743388449904,7.9393,125.97,125.93,38.0013]
[1743388450510,0.05207949,125.96,125.94,0.05798641]
[1743388451315,0.05207949,125.96,125.95,62.0]
[1743388452807,21.66695219,126.04,125.95,62.0]
[1743388453012,21.66695219,126.04,125.96,30.02]
[1743388453208,2.0435,126.04,125.96,30.02]
[1743388454116,0.05645257,126.01,125.99,0.06030119]
[1743388456311,7.99305257,126.01,126.0,62.0]
[1743388456512,0.05645257,126.01,126.0,62.0]
[1743388456908,7.99295257,126.01,126.0,62.0]
[1743388457108,0.05645257,126.01,126.0,62.0]
[1743388458718,1.9511,126.07,126.0,62.0]
[1743388459020,30.0,126.09,126.01,30.0]
[1743388459919,7.99114399,126.06,126.04,0.05422452]
[1743388460524,0.05744399,126.06,126.04,0.05422452]
[1743388461122,7.99114399,126.06,126.04,0.05422452]
[1743388461423,0.05744399,126.06,126.04,0.05422452]
[1743388464823,7.99084399,126.06,126.04,0.05422452]
[1743388465026,0.05744399,126.06,126.04,0.05422452]
[1743388465828,7.9339,126.05,126.04,0.05422452]
[1743388468229,7.9339,126.05,126.04,62.05422452]
[1743388468427,7.99094399,126.06,126.04,62.05422452]
[1743388468728,0.05744399,126.06,126.04,62.05422452]
[1743388469129,7.9339,126.05,126.04,62.05422452]
[1743388469329,0.05744399,126.06,126.04,62.05422452]
[1743388470832,0.05744399,126.06,126.04,69.98872452]
[1743388471936,0.05744399,126.06,126.04,62.05422452]
[1743388472436,7.99084399,126.06,126.04,62.05422452]
[1743388472937,0.05744399,126.06,126.04,62.05422452]
[1743388473130,7.99104399,126.06,126.04,62.05422452]
[1743388473530,7.9339,126.05,126.04,62.05422452]
[1743388473728,7.9339,126.05,126.04,0.05422452]
[1743388473939,0.05744399,126.06,126.04,0.05422452]
[1743388474238,7.99114399,126.06,126.04,0.05422452]
[1743388474738,0.05744399,126.06,126.04,0.05422452]
[1743388475535,7.9339,126.05,126.04,0.05422452]
[1743388477738,7.99104399,126.06,126.04,0.05422452]
[1743388478044,12.29191353,126.06,126.04,0.05422452]
[1743388479532,7.9339,126.05,126.04,0.05422452]
[1743388480327,12.29191353,126.06,125.99,29.94]
[1743388480534,16.48676954,126.06,125.99,29.94]
[1743388480734,16.48676954,126.06,125.99,7.9377]
[1743388480936,16.48676954,126.06,125.99,37.8577]
[1743388481129,16.48676954,126.06,125.99,29.92]
[1743388481335,0.05146505,126.04,126.01,0.05168298]
[1743388483238,0.05146505,126.04,126.01,62.05168298]
[1743388483433,12.28593459,126.04,126.01,0.05168298]
[1743388483634,12.28593459,126.04,125.96,651.6194]
[1743388483635,12.23446954,126.02,125.97,29.86]
[1743388483830,12.23446954,126.02,125.95,29.86]
[1743388484036,7.9389,125.98,125.95,29.86]
[1743388484432,12.23446954,126.02,125.95,29.86]
[1743388484635,7.9385,125.98,125.95,29.86]
[1743388484841,7.9385,125.98,125.97,0.05487054]
[1743388486336,12.23446954,125.98,125.91,362.2474]
[1743388486537,7.9412,125.94,125.92,62.0]
[1743388486837,12.23446954,125.98,125.92,62.0]
[1743388487239,12.23446954,126.0,125.92,62.0]
[1743388487437,42.31446954,126.02,125.93,12.23446954]
[1743388487638,0.05223169,125.97,125.95,0.05688642]
[1743388487943,42.31446954,126.02,125.95,0.05688642]
[1743388488545,7.9387,125.98,125.95,0.05688642]
[1743388488840,12.29567392,126.0,125.95,0.05688642]
[1743388489143,7.9396,125.96,125.95,0.05688642]
[1743388490545,7.9396,125.96,125.95,62.05688642]
[1743388490942,7.9396,125.96,125.95,0.05688642]
[1743388493745,7.9417,125.93,125.91,30.1]
[1743388494049,7.9417,125.93,125.92,62.0]
[1743388495352,7.99150903,125.94,125.92,62.0]
[1743388496150,0.05040903,125.94,125.92,62.0]
[1743388496749,0.05040903,125.94,125.92,69.9418]
[1743388497144,0.05040903,125.94,125.92,62.0]
[1743388498057,0.05040903,125.94,125.92,69.9421]
[1743388498959,0.05040903,125.94,125.92,62.0]
[1743388499465,0.05040903,125.94,125.92,69.9421]
[1743388499654,0.05040903,125.94,125.92,62.0]
[1743388499956,0.05040903,125.94,125.93,30.0]
[1743388500659,0.05040903,125.94,125.93,37.9415]
[1743388500962,12.23446954,126.01,125.93,30.0]
[1743388501466,7.9393,125.97,125.93,30.0]
[1743388501655,12.23446954,126.01,125.93,30.0]
[1743388501852,0.05995261,125.98,125.93,30.0]
[1743388502058,0.05995261,125.98,125.96,0.05512597]
[1743388502252,7.9393,125.97,125.96,0.05512597]
[1743388504766,7.99865261,125.98,125.96,0.05512597]
[1743388504957,0.05995261,125.98,125.96,0.05512597]
[1743388506768,0.05995261,125.98,125.96,29.93512597]
[1743388507267,0.05995261,125.98,125.97,7.939]
[1743388507673,329.62160956,126.1,125.97,12.23446954]
[1743388507866,12.23446954,126.08,125.99,12.23446954]
[1743388508067,12.23446954,126.08,126.0,29.88]
[1743388508368,7.9343,126.05,126.0,29.88]
[1743388508566,42.11446954,126.08,126.0,29.88]
[1743388508759,0.0507573,126.05,126.03,0.05951593]
[1743388509267,0.0507573,126.05,126.03,29.91951593]
[1743388509468,0.0507573,126.05,126.03,37.85441593]
[1743388510265,0.0507573,126.05,126.04,7.9346]
[1743388510472,0.0507573,126.05,126.03,29.91951593]
[1743388510878,0.0507573,126.05,126.04,62.0]
[1743388513871,33.8806,126.12,126.04,62.0]
[1743388514072,16.33506954,126.12,126.04,62.0]
[1743388514373,4.1006,126.12,126.05,12.23446954]
[1743388514567,4.1006,126.12,126.06,29.8]
[1743388515073,42.01446954,126.14,126.08,0.05767573]
[1743388515074,0.05045661,126.1,126.08,0.05767573]
[1743388515466,0.05045661,126.1,126.09,7.9314]
[1743388515667,0.05045661,126.1,126.09,37.7314]
[1743388517473,0.05045661,126.1,126.09,91.8]
[1743388520880,0.05045661,126.1,126.09,29.8]
[1743388523876,0.05045661,126.1,126.09,91.8]
[1743388524872,0.05045661,126.1,126.08,0.05767573]
[1743388525575,7.9314,126.09,126.08,0.05767573]
[1743388526676,0.05045661,126.1,126.08,0.05767573]
[1743388527882,0.05045661,126.1,126.08,62.05767573]
[1743388529278,7.98145661,126.1,126.08,62.05767573]
[1743388529876,0.05045661,126.1,126.08,62.05767573]
[1743388530376,0.05045661,126.1,126.08,91.75767573]
[1743388530580,0.05045661,126.1,126.09,7.9314]
[1743388533877,1.9519,126.16,126.11,7.9298]
[1743388534083,7.928,126.15,126.11,37.6298]
[1743388534285,7.928,126.15,126.12,7.9295]
[1743388534586,7.927,126.16,126.11,41.93446954]
[1743388534779,0.05119886,126.15,126.12,7.98136926]
[1743388534975,0.05119886,126.15,126.12,0.05236926]
[1743388535887,0.05119886,126.15,126.12,7.98146926]
[1743388536280,0.05119886,126.15,126.13,7.9289]
[1743388536984,0.05119886,126.15,126.12,7.98166926]
[1743388537485,0.05119886,126.15,126.13,7.9288]
[1743388537786,0.05119886,126.15,126.12,0.05236926]
[1743388538084,0.05119886,126.15,126.12,7.98166926]
[1743388538286,7.97899886,126.15,126.12,7.98166926]
[1743388538687,0.05119886,126.15,126.12,7.98166926]
[1743388539281,0.05119886,126.15,126.12,0.05236926]
[1743388540586,0.05119886,126.15,126.12,7.98166926]
[1743388541180,0.05119886,126.15,126.13,7.9289]
[1743388542190,0.05119886,126.15,126.12,7.98166926]
[1743388542789,0.05119886,126.15,126.13,7.9288]
[1743388542987,0.05119886,126.15,126.12,0.05236926]
[1743388543292,0.05119886,126.15,126.14,7.9283]
[1743388543486,0.05119886,126.15,126.14,37.6283]
[1743388547293,2.0775,126.22,126.17,7.9264]
[1743388547791,7.9242,126.21,126.17,37.6264]
[1743388547997,2.0775,126.22,126.17,29.7]
[1743388548397,0.05581423,126.21,126.18,0.06038502]
[1743388548800,7.9246,126.2,126.18,0.06038502]
[1743388551702,15.73727063,126.2,126.18,0.06038502]
[1743388552501,7.9246,126.2,126.18,0.06038502]
[1743388553102,7.81267063,126.2,126.18,0.06038502]
[1743388553902,7.9251,126.19,126.18,0.06038502]
[1743388555807,7.9248,126.2,126.18,0.06038502]
[1743388556606,0.05581423,126.21,126.18,7.87305565]
[1743388557005,0.05581423,126.21,126.18,15.79865565]
[1743388558610,0.05581423,126.21,126.19,7.9251]
[1743388558815,0.05581423,126.21,126.18,7.87305565]
[1743388559310,7.97981423,126.21,126.18,7.87305565]
[1743388559511,0.05581423,126.21,126.18,15.79845565]
[1743388560012,0.05581423,126.21,126.2,15.73717063]
[1743388560209,7.9216,126.25,126.2,37.49267063]
[1743388560410,7.9216,126.25,126.21,7.81267063]
[1743388560609,7.81267063,126.26,126.22,7.9232]
[1743388560806,55.43468184,126.31,126.23,37.49267063]